bitfinex-derivatives/quotes_ETHF0:USTF0_20250727
["timestamp","ask_amount","ask_price","bid_price","bid_amount"]
[1753583695362,0.7031,3768.3,3768.1,3.5192]
[1753583695562,1.51121,3767.9,3767.8,0.2893]
[1753583695765,1.7188,3767.8,3767.7,0.53063]
[1753583696369,1.7188,3767.8,3767.7,0.81993]
[1753583697269,0.7031,3767.3,3767.2,1.69491]
[1753583697473,1.7392,3767.3,3767.2,1.53921]
[1753583698069,1.7392,3767.3,3767.2,1.59841]
[1753583701374,1.7392,3767.3,3767.2,1.69311]
[1753583701375,1.4622,3767.3,3767.2,1.69311]
[1753583701672,0.9497,3767.3,3767.2,1.69311]
[1753583702770,1.7362,3767.3,3767.2,1.69311]
[1753583704070,4.944,3767.3,3767.2,1.69311]
[1753583705173,0.9435,3767.6,3767.5,1.02717]
[1753583705368,0.9435,3767.6,3767.5,1.69437]
[1753583706674,1.2569,3767.6,3767.5,1.69437]
[1753583707175,0.9435,3767.6,3767.5,1.69437]
[1753583707375,1.2569,3767.6,3767.5,1.69437]
[1753583707574,1.73,3767.6,3767.5,1.69437]
[1753583708675,1.453,3767.6,3767.5,1.69437]
[1753583710075,1.73,3767.6,3767.5,1.69437]
[1753583713479,4.9378,3767.6,3767.5,1.69437]
[1753583714978,4.1513,3767.6,3767.5,1.69437]
[1753583715179,3.2078,3767.6,3767.5,1.69437]
[1753583717183,22.3185,3768.1,3768.0,1.0271]
[1753583717489,1.5339,3768.1,3768.0,1.6943]
[1753583717785,1.2569,3768.1,3768.0,1.6943]
[1753583718383,1.73,3768.1,3768.0,0.8381]
[1753583718688,1.73,3767.8,3767.7,0.53064]
[1753583718886,4.9378,3767.8,3767.7,0.53064]
[1753583719494,4.9378,3767.8,3767.7,0.83814]
[1753583719685,4.9378,3767.8,3767.7,1.54044]
[1753583719890,4.9378,3767.8,3767.7,1.59964]
[1753583720090,1.73,3767.8,3767.7,1.69434]
[1753583729391,1.73,3767.8,3767.7,1.54044]
[1753583731697,1.73,3767.8,3767.7,1.60014]
[1753583732191,1.73,3767.8,3767.7,1.69554]
[1753583734400,2.26062,3767.8,3767.7,1.60014]
[1753583734595,2.26062,3767.8,3767.7,1.54044]
[1753583734900,1.73,3767.8,3767.7,1.54044]
[1753583735902,1.73,3767.8,3767.7,1.60014]
[1753583736501,1.73,3767.8,3767.7,1.69554]
[1753583737500,1.73,3767.8,3767.7,0.53064]
[1753583737703,1.73,3767.8,3767.7,0.82304]
[1753583738103,1.73,3767.8,3767.7,1.51524]
[1753583739307,4.9378,3767.8,3767.7,1.51524]
[1753583739800,4.9378,3767.8,3767.7,1.57494]
[1753583740808,4.9378,3767.8,3767.7,1.51524]
[1753583741212,1.73,3767.8,3767.7,1.51524]
[1753583741508,4.9378,3767.8,3767.7,1.51524]
[1753583743508,5.46842,3767.8,3767.7,1.51524]
[1753583744207,4.9378,3767.8,3767.7,1.51524]
[1753583744910,4.9378,3767.8,3767.7,1.57494]
[1753583750811,3.6669,3768.2,3768.1,0.83428]
[1753583751014,3.2078,3768.2,3768.1,1.67028]
[1753583751414,4.7285,3768.2,3768.1,1.67028]
[1753583751614,4.9338,3768.2,3768.1,1.67028]
[1753583751814,0.6975,3767.9,3767.8,0.5861]
[1753583752013,1.726,3767.9,3767.8,0.5861]
[1753583752214,1.726,3767.9,3767.8,1.51522]
[1753583752416,1.726,3767.9,3767.8,1.57492]
[1753583757019,4.4511,3768.2,3768.1,1.67028]
[1753583757318,3.2078,3768.2,3768.1,1.67028]
[1753583758518,4.9259,3768.2,3768.1,1.57488]
[1753583758911,4.9259,3768.2,3768.1,1.51518]
[1753583759117,4.9259,3768.2,3768.1,1.22148]
[1753583760223,4.9259,3768.2,3768.1,0.53058]
[1753583760924,5.45647,3768.2,3768.1,0.53058]
[1753583761521,4.9259,3768.2,3768.1,0.53058]
[1753583761721,4.9259,3768.2,3768.1,0.83588]
[1753583762414,4.9259,3768.2,3768.1,1.58188]
[1753583762614,24.2998,3768.2,3768.1,1.67728]
[1753583763220,25.0442,3768.2,3768.1,1.67728]
[1753583763423,3.9522,3768.2,3768.1,1.67728]
[1753583763723,24.2998,3768.2,3768.1,1.67728]
[1753583764725,0.5305,3768.7,3767.7,1.3266]
[1753583764726,3.2078,3768.7,3768.4,0.4965]
[1753583764914,21.89177713,3768.6,3768.5,1.67723]
[1753583765118,22.63617713,3768.6,3768.5,1.67723]
[1753583765326,22.82947713,3768.6,3768.5,1.67723]
[1753583765521,1.10767713,3768.6,3768.5,1.67723]
[1753583765722,3.9522,3769.1,3769.0,1.67716]
[1753583765923,21.89163981,3769.1,3769.0,1.67716]
[1753583766115,21.092,3769.1,3769.0,1.67716]
[1753583766928,21.8364,3769.1,3769.0,1.67716]
[1753583767126,22.0297,3769.1,3769.0,1.67716]
[1753583768222,0.9377,3769.1,3769.0,1.67716]
[1753583769829,0.3079,3769.1,3769.0,1.67716]
[1753583770121,1.5266,3769.4,3769.3,0.62581]
[1753583770328,38.221,3769.6,3769.5,0.53038]
[1753583770520,59.7465,3769.6,3769.5,1.67708]
[1753583770832,60.0581,3769.6,3769.5,1.67708]
[1753583771131,60.3354,3769.6,3769.5,1.58168]
[1753583771321,1.7182,3769.2,3769.1,1.67714]
[1753583774828,1.7182,3769.2,3769.1,1.58174]
[1753583775029,1.7182,3769.2,3769.1,1.52214]
[1753583775627,1.7182,3769.2,3769.1,1.67714]
[1753583778433,0.9377,3769.2,3769.1,1.67714]
[1753583779031,1.2493,3769.2,3769.1,1.67714]
[1753583779731,0.9377,3769.2,3769.1,1.67714]
[1753583780934,1.7182,3769.2,3769.1,1.67714]
[1753583781432,25.5421,3769.5,3769.4,1.0269]
[1753583781638,24.2928,3769.5,3769.4,1.6771]
[1753583781834,25.2305,3769.5,3769.4,1.6771]
[1753583782133,26.011,3769.5,3769.4,1.6771]
[1753583782835,25.5421,3769.5,3769.4,1.6771]
[1753583783037,4.4571,3769.5,3769.4,1.6771]
[1753583783335,25.7327,3769.5,3769.4,1.6771]
[1753583783533,26.01,3769.5,3769.4,1.6771]
[1753583783834,4.926,3769.5,3769.4,1.6771]
[1753583784035,4.6487,3769.5,3769.4,1.6771]
[1753583784234,4.4571,3769.5,3769.4,1.6771]
[1753583784828,1.2187,3769.8,3769.7,0.53036]
[1753583785030,22.0207,3769.8,3769.7,1.67706]
[1753583785224,0.9377,3769.8,3769.7,1.67706]
[1753583785425,0.2,3769.9,3769.8,1.67704]
[1753583792547,0.2,3769.9,3769.8,4.88484]
[1753583792848,0.9276,3769.9,3769.8,4.88484]
[1753583793644,0.2,3769.9,3769.8,4.88484]
[1753583794552,0.9276,3769.9,3769.8,4.88484]
[1753583794752,1.1284,3769.9,3769.8,4.88484]
[1753583795052,1.4405,3769.9,3769.8,4.88484]
[1753583796653,1.9122,3769.9,3769.8,4.88484]
[1753583801148,1.9122,3769.9,3769.8,1.67704]
[1753583801751,1.9122,3769.9,3769.8,0.53034]
[1753583801949,0.53034,3769.8,3769.3,0.2865]
[1753583802153,1.7122,3769.4,3769.3,0.81691]
[1753583802349,1.7122,3769.4,3769.3,0.53041]
[1753583803248,1.7122,3769.4,3769.3,2.28181]
[1753583803553,1.4352,3769.7,3769.6,2.28177]
[1753583803849,1.7122,3769.7,3769.6,2.28177]
[1753583804656,0.9284,3769.7,3769.6,2.28177]
[1753583804849,1.1284,3769.9,3769.8,2.28174]
[1753583805649,0.49,3769.9,3769.8,2.28174]
[1753583805845,0.2,3769.9,3769.8,2.28174]
[1753583808451,0.2,3769.9,3769.8,5.48954]
[1753583810051,0.6376,3769.9,3769.8,5.48954]
[1753583810257,1.1284,3769.9,3769.8,5.48954]
[1753583810458,1.9122,3769.9,3769.8,5.48954]
[1753583811352,1.9122,3769.9,3769.8,4.42254]
[1753583811759,1.9122,3769.9,3769.8,5.18634]
[1753583812057,1.9122,3769.9,3769.8,5.48954]
[1753583814355,1.1284,3769.9,3769.8,5.48954]
[1753583814757,1.7175,3769.9,3769.8,5.48954]
[1753583814963,1.9122,3769.9,3769.8,5.48954]
[1753583816162,1.6352,3769.9,3769.8,5.48954]
[1753583817764,1.1284,3769.9,3769.8,5.48954]
[1753583819962,0.2,3769.9,3769.8,5.48954]
[1753583820860,1.4205,3769.9,3769.8,5.48954]
[1753583821165,1.8902,3769.9,3769.8,5.48954]
[1753583824372,1.8902,3769.9,3769.8,4.02464]
[1753583825469,1.8902,3769.9,3769.8,5.43984]
[1753583826167,1.8902,3769.9,3769.8,3.73814]
[1753583830366,1.8902,3769.9,3769.8,5.01064]
[1753583830571,1.1227,3769.9,3769.8,5.44624]
[1753583831570,0.483,3769.9,3769.8,5.44624]
[1753583832373,1.8898,3769.9,3769.8,5.44624]
[1753583833571,1.1227,3769.9,3769.8,5.44624]
[1753583834269,0.2,3769.9,3769.8,5.44624]
[1753583834570,1.6898,3770.5,3770.4,1.20696]
[1753583834776,1.6898,3770.5,3770.4,2.23836]
[1753583837078,1.6898,3770.8,3770.7,1.20692]
[1753583837377,1.6898,3770.8,3770.7,2.23832]
[1753583839580,1.2205,3770.8,3770.7,2.23832]
[1753583839976,1.4131,3770.8,3770.7,2.23832]
[1753583840183,1.6898,3770.8,3770.7,2.23832]
[1753583842579,1.4972,3771.1,3771.0,1.20687]
[1753583842782,1.4972,3771.1,3771.0,2.23827]
[1753583843083,1.6898,3771.1,3771.0,2.23827]
[1753583843383,1.2205,3771.1,3771.0,2.23827]
[1753583843977,0.9227,3771.1,3771.0,2.23827]
[1753583847583,1.2364,3771.1,3771.0,2.23827]
[1753583850286,0.9672,3771.3,3771.2,2.22235]
[1753583850680,1.7482,3771.3,3771.2,2.22235]
[1753583851987,1.7482,3771.3,3771.2,1.10685]
[1753583852187,1.7482,3771.3,3771.2,2.22235]
[1753583855189,1.2809,3771.3,3771.2,2.22235]
[1753583857394,0.018,3771.3,3771.2,2.22235]
[1753583858394,0.4848,3771.3,3771.2,2.22235]
[1753583858594,0.7736,3771.3,3771.2,2.22235]
[1753583859094,0.9672,3771.3,3771.2,2.22235]
[1753583860393,1.2809,3771.3,3771.2,2.22235]
[1753583862203,1.5582,3771.3,3771.2,2.22235]
[1753583865900,1.7482,3771.3,3771.2,2.22235]
[1753583867703,0.2,3771.9,3771.5,2.2223]
[1753583867704,1.2629,3771.6,3771.5,2.2223]
[1753583868503,1.2629,3771.6,3771.5,0.5301]
[1753583868504,1.7302,3771.6,3771.5,0.5301]
[1753583868898,1.7302,3771.6,3771.5,0.8226]
[1753583869906,1.7302,3771.6,3771.5,0.5301]
[1753583872004,0.6724,3771.6,3771.4,0.53011]
[1753583872205,1.7302,3771.5,3771.4,0.53011]
[1753583873608,1.7302,3771.5,3771.4,0.82261]
[1753583875713,1.7302,3771.5,3771.4,0.53011]
[1753583877909,0.6724,3771.5,3771.4,0.53012]
[1753583878214,1.7015,3771.5,3771.4,0.53012]
[1753583879006,1.7015,3771.5,3771.4,0.81332]
[1753583881713,1.7015,3771.5,3771.4,1.12622]
[1753583881914,1.2343,3771.5,3771.4,2.25402]
[1753583882114,4.9418,3771.8,3771.7,2.25398]
[1753583882316,4.162,3771.8,3771.7,2.25398]
[1753583882815,0.2,3771.9,3771.8,1.20856]
[1753583883108,0.2,3771.9,3771.8,2.25396]
[1753583886118,1.6568,3771.9,3771.5,3.2078]
[1753583886316,1.734,3771.1,3771.0,2.25407]
[1753583886515,0.7265,3771.7,3771.6,1.01459]
[1753583886711,0.2,3771.9,3771.8,2.25396]
[1753583887721,0.6493,3771.9,3771.8,2.25396]
[1753583888017,0.2,3771.9,3771.8,2.25396]
[1753583888619,0.4493,3772.2,3772.1,0.53002]
[1753583888817,1.2568,3772.5,3772.4,1.7239]
[1753583889018,2.05553599,3772.5,3772.4,2.25388]
[1753583889920,2.25553599,3772.5,3772.4,2.25388]
[1753583890124,2.53273599,3772.5,3772.4,2.25388]
[1753583893022,2.23013599,3772.5,3772.4,2.25388]
[1753583893224,2.53273599,3772.5,3772.4,2.25388]
[1753583895422,1.734,3772.5,3772.4,2.25388]
[1753583897430,1.734,3772.5,3772.4,1.51178]
[1753583897831,1.734,3772.5,3772.4,1.19888]
[1753583898131,1.734,3772.5,3772.4,1.96108]
[1753583898937,1.734,3772.5,3772.4,2.25388]
[1753583899536,2.53180608,3772.5,3772.4,2.25388]
[1753583899733,1.734,3772.5,3772.4,2.25388]
[1753583901334,1.0844,3772.8,3772.7,0.4845]
[1753583901533,1.2844,3772.8,3772.7,2.25383]
[1753583901933,1.7337,3772.8,3772.7,1.51173]
[1753583903639,1.2568,3772.8,3772.7,2.25383]
[1753583904235,0.9542,3772.8,3772.7,2.25383]
[1753583904637,1.2568,3772.8,3772.7,2.25383]
[1753583904832,1.5337,3772.8,3772.7,2.25383]
[1753583905336,1.7337,3772.8,3772.7,2.25383]
[1753583906334,1.7337,3772.8,3772.7,1.19883]
[1753583906534,0.7049,3772.5,3772.4,0.52998]
[1753583906730,1.7337,3772.5,3772.4,0.52998]
[1753583908134,1.0519,3772.5,3772.4,2.29988]
[1753583908336,1.0886,3772.8,3772.7,2.31473]
[1753583908528,0.5168,3772.8,3772.7,2.31473]
[1753583908734,1.0886,3773.1,3773.0,1.24029]
[1753583908937,1.2749,3773.1,3773.0,2.31469]
[1753583910030,1.4765,3773.1,3773.0,2.31469]
[1753583910230,1.7538,3773.1,3773.0,2.31469]
[1753583911236,1.4765,3773.1,3773.0,2.31469]
[1753583911434,1.7538,3773.1,3773.0,2.31469]
[1753583915839,1.4765,3773.1,3773.0,2.31469]
[1753583916448,1.7538,3773.1,3773.0,2.31469]
[1753583917846,1.7538,3773.1,3773.0,0.52989]
[1753583918234,1.75802925,3773.1,3773.0,0.52989]
[1753583918438,1.75802925,3773.1,3773.0,0.84179]
[1753583918641,1.75802925,3773.1,3773.0,1.56229]
[1753583919849,0.7184,3773.0,3772.9,0.5299]
[1753583920033,1.7538,3773.0,3772.9,0.5299]
[1753583920545,1.7538,3772.7,3772.6,4.04965]
[1753583920747,0.52996,3772.6,3772.5,0.52995]
[1753583920947,1.7538,3772.6,3772.5,0.52995]
[1753583921143,1.4765,3772.6,3772.5,2.31475]
[1753583921342,0.9804,3772.6,3772.5,2.31475]
[1753583924147,1.5522,3772.6,3772.5,2.31475]
[1753583924549,1.2749,3772.6,3772.5,2.31475]
[1753583925049,0.99992925,3773.1,3773.0,1.70559]
[1753583925249,0.99992925,3773.1,3773.0,2.01749]
[1753583925543,1.75802925,3773.1,3773.0,2.01749]
[1753583925743,1.75802925,3773.1,3773.0,1.56229]
[1753583926649,1.75802925,3773.1,3773.0,2.01749]
[1753583927346,1.75802925,3773.1,3773.0,2.01749]
[1753583927544,1.75802925,3773.1,3773.0,1.56229]
[1753583931353,1.75802925,3773.1,3773.0,2.01749]
[1753583932551,1.75802925,3773.1,3773.0,2.31469]
[1753583934247,1.75802925,3773.1,3773.0,0.84179]
[1753583934452,1.75802925,3773.1,3773.0,0.52989]
[1753583934755,2.55784742,3773.1,3773.0,2.31469]
[1753583935052,1.27912925,3773.1,3773.0,2.31469]
[1753583935254,0.98462925,3773.1,3773.0,2.31469]
[1753583936452,1.55642925,3773.1,3773.0,2.31469]
[1753583937451,1.75802925,3773.1,3773.0,2.31469]
[1753583938252,1.75802925,3773.1,3773.0,0.52989]
[1753583939053,1.75802925,3773.1,3773.0,0.83629]
[1753583939449,1.75802925,3773.1,3773.0,1.13129]
[1753583939652,1.75802925,3773.1,3773.0,2.30159]
[1753583941953,0.98462925,3773.1,3773.0,2.30159]
[1753583942654,1.28812925,3773.1,3773.0,2.30159]
[1753583943557,1.56442925,3773.1,3773.0,2.30159]
[1753583943754,1.76252925,3773.1,3773.0,2.30159]
[1753583944056,1.76252925,3773.1,3773.0,1.54649]
[1753583944959,1.76252925,3773.1,3773.0,2.30159]
[1753583947661,1.76252925,3773.1,3773.0,1.54649]
[1753583948861,2.5624665,3773.1,3773.0,0.52989]
[1753583949255,1.73,3773.0,3772.9,0.52989]
[1753583949456,2.52993725,3773.0,3772.8,0.52991]
[1753583949662,1.73,3772.9,3772.8,0.52991]
[1753583949860,0.5016,3772.2,3772.1,4.9795]
[1753583950060,1.73,3772.2,3772.1,5.50952]
[1753583950262,0.9521,3772.2,3772.1,5.50952]
[1753583950462,1.4537,3772.5,3772.4,1.23868]
[1753583950660,1.73,3772.5,3772.4,2.30168]
[1753583954269,0.6883,3772.3,3772.2,0.3064]
[1753583954466,1.73,3772.3,3772.2,0.83639]
[1753583954858,1.73,3772.3,3771.7,1.063]
[1753583954859,0.6883,3772.3,3771.7,1.063]
[1753583955064,0.4902,3771.8,3771.7,1.69888]
[1753583955265,4.9378,3772.5,3772.4,1.69878]
[1753583955470,4.1599,3772.5,3772.4,1.69878]
[1753583955668,3.698,3772.5,3772.4,2.30168]
[1753583955970,0.4619,3772.8,3772.7,2.30163]
[1753583956365,1.5319,3772.8,3772.7,2.30163]
[1753583956870,1.2556,3772.8,3772.7,2.30163]
[1753583958169,1.73,3772.8,3772.7,2.30163]
[1753583962267,0.9521,3772.8,3772.7,2.30163]
[1753583962868,1.7303,3772.8,3772.7,1.25003]
[1753583963067,1.7303,3772.8,3772.7,0.52993]
[1753583963464,2.26022,3772.8,3772.5,0.6029]
[1753583963770,4.9381,3772.7,3772.6,0.83634]
[1753583964471,4.9381,3772.7,3772.6,0.52994]
[1753583964671,1.7303,3772.7,3772.6,0.52994]
[1753583965272,1.7303,3772.7,3772.6,1.54654]
[1753583965473,1.7303,3772.7,3772.6,2.00664]
[1753583966275,1.7303,3772.7,3772.6,1.54654]
[1753583966876,2.26023,3772.7,3772.6,1.04374]
[1753583967077,2.26023,3772.7,3772.6,0.52994]
[1753583967277,1.7303,3772.7,3772.6,0.52994]
[1753583967777,2.26023,3772.7,3772.6,0.52994]
[1753583968174,1.723,3772.5,3772.4,0.6918]
[1753583968374,1.2173,3772.4,3772.3,0.52998]
[1753583968579,1.723,3772.4,3772.3,0.52998]
[1753583968782,1.723,3772.4,3772.3,0.81258]
[1753583968981,2.25298,3772.4,3772.3,0.81258]
[1753583969483,2.25299,3772.3,3772.2,0.53]
[1753583970080,1.723,3772.3,3772.2,0.53]
[1753583970875,2.25299,3772.3,3772.2,0.53]
[1753583971181,0.9548,3772.5,3772.4,2.24498]
[1753583971780,1.723,3772.5,3772.4,2.24498]
[1753583972180,1.723,3772.5,3772.4,0.52998]
[1753583972677,1.723,3772.5,3772.4,0.81258]
[1753583972978,1.723,3772.3,3772.2,0.8126]
[1753583973174,2.25299,3772.3,3772.2,0.8126]
[1753583973374,1.4462,3772.0,3771.9,0.53004]
[1753583973583,1.4462,3771.8,3771.7,0.2826]
[1753583973776,1.723,3771.8,3771.7,0.2826]
[1753583973973,2.25308,3771.7,3771.6,0.2826]
[1753583974482,1.723,3771.7,3771.6,2.24509]
[1753583975678,2.25308,3771.7,3771.6,1.715]
[1753583975884,2.25308,3771.7,3771.6,0.9775]
[1753583976084,1.723,3771.7,3771.6,1.50759]
[1753583977384,1.723,3771.7,3771.6,2.24509]
[1753583977780,2.25308,3771.7,3771.6,2.24509]
[1753583978286,1.723,3771.7,3771.6,2.24509]
[1753583978485,2.25308,3771.7,3771.6,1.19809]
[1753583978688,1.723,3771.7,3771.6,0.81269]
[1753583978987,2.25308,3771.7,3771.6,0.81269]
[1753583979176,2.25308,3771.7,3771.6,0.2826]
[1753583979378,2.25308,3771.7,3771.6,0.81269]
[1753583979985,2.25308,3771.7,3771.6,0.2826]
[1753583980177,0.5301,3771.5,3771.4,0.72491]
[1753583980378,2.2531,3771.5,3771.4,0.2826]
[1753583980582,2.2531,3771.5,3770.7,0.21394226]
[1753583980583,1.723,3771.2,3771.1,1.95375]
[1753583980983,1.723,3771.2,3771.1,1.19815]
[1753583981186,1.723,3771.2,3771.1,1.00755]
[1753583981386,1.723,3771.2,3771.1,1.95375]
[1753583981885,1.254,3771.2,3771.1,2.24515]
[1753583983084,1.723,3771.2,3771.1,2.24515]
[1753583983483,3.2078,3771.9,3771.0,0.2826]
[1753583983484,1.723,3771.1,3771.0,0.2826]
[1753583983688,1.723,3771.1,3771.0,0.81277]
[1753583983894,1.723,3771.1,3771.0,1.50767]
[1753583984196,1.723,3771.1,3771.0,1.95377]
[1753583984490,1.254,3771.1,3771.0,2.24517]
[1753583985196,1.723,3771.1,3771.0,2.24517]
[1753583988098,0.7567,3771.1,3771.0,2.24517]
[1753583988295,0.7567,3771.1,3771.0,5.45297]
[1753583988498,0.21774,3771.1,3771.0,5.45297]
[1753583988795,3.2078,3771.7,3771.6,1.00749]
[1753583989198,3.2078,3771.7,3771.6,1.50759]
[1753583989600,4.4876,3772.1,3772.0,1.50753]
[1753583990294,0.3135,3772.1,3772.0,1.50753]
[1753583990998,4.2108,3772.5,3772.4,1.20678]
[1753583991294,4.2108,3772.5,3772.4,1.79888]
[1753583991295,5.28536812,3772.5,3772.4,1.79888]
[1753583991498,5.72856812,3772.5,3772.4,1.79888]
[1753583992203,4.9308,3772.5,3772.4,1.79888]
[1753583992394,4.4335,3772.5,3772.4,1.74488]
[1753583992595,4.9308,3772.5,3772.4,2.24498]
[1753583992795,3.2078,3772.5,3772.4,2.24498]
[1753583993191,1.254,3772.7,3772.6,1.20675]
[1753583993399,1.254,3772.7,3772.6,2.24495]
[1753583993702,1.4462,3772.7,3772.6,2.24495]
[1753583993903,1.723,3772.7,3772.6,2.24495]
[1753584001700,1.0321,3772.9,3772.2,2.02062]
[1753584001998,4.9499,3772.5,3772.4,0.52998]
[1753584003004,4.9499,3772.5,3772.4,0.81828]
[1753584003401,4.9499,3772.5,3772.4,2.23218]
[1753584003803,1.4659,3772.8,3772.7,2.23213]
[1753584007208,1.7421,3772.8,3772.7,2.23213]
[1753584009807,3.2078,3772.9,3772.8,1.22552]
[1753584010009,3.2078,3772.9,3772.8,2.23212]
[1753584010411,3.4093,3772.9,3772.8,2.23212]
[1753584010610,3.8614,3772.9,3772.8,2.23212]
[1753584011111,4.1652,3772.9,3772.8,2.23212]
[1753584011608,4.3642,3772.9,3772.8,0.52992]
[1753584011812,1.7421,3772.4,3772.3,1.80289]
[1753584012114,1.2669,3772.4,3772.3,2.23219]
[1753584013807,1.7421,3772.8,3772.7,1.7022]
[1753584014013,1.7421,3772.8,3772.7,2.23213]
[1753584015414,0.2015,3772.8,3772.7,2.23213]
[1753584015814,1.7421,3772.8,3772.7,2.23213]
[1753584021219,3.07223803,3772.8,3772.7,2.23213]
[1753584021520,2.54231803,3772.8,3772.7,2.23213]
[1753584021821,3.07223803,3772.8,3772.7,2.23213]
[1753584022125,2.54231803,3772.8,3772.7,2.23213]
[1753584022719,2.06711803,3772.8,3772.7,2.23213]
[1753584022919,0.80021803,3772.8,3772.7,2.23213]
[1753584024424,1.7421,3772.8,3772.7,1.01193]
[1753584024819,1.7421,3772.8,3772.7,2.23213]
[1753584026824,2.27202,3772.8,3772.7,2.23213]
[1753584027523,1.7421,3772.8,3772.7,2.23213]
[1753584030022,3.6405,3772.9,3772.8,2.25782]
[1753584030221,4.4195,3772.9,3772.8,2.25782]
[1753584030421,4.6956,3772.9,3772.8,2.25782]
[1753584030622,4.8941,3772.9,3772.8,2.25782]
[1753584036828,4.618,3772.9,3772.8,2.25782]
[1753584037425,4.8941,3772.9,3772.8,2.25782]
[1753584038125,1.6863,3772.9,3772.8,2.25782]
[1753584038424,2.01766,3773.3,3773.2,0.52986]
[1753584038727,3.01659869,3773.3,3773.2,2.25776]
[1753584040326,1.53133869,3773.3,3773.2,2.25776]
[1753584040532,0.80043869,3773.3,3773.2,2.25776]
[1753584040931,1.42583869,3773.3,3773.2,2.25776]
[1753584041627,0.99313869,3773.3,3773.2,2.25776]
[1753584042034,0.1927,3773.3,3773.2,2.25776]
[1753584043334,0.9236,3773.3,3773.2,2.25776]
[1753584043637,0.6254,3773.3,3773.2,2.25776]
[1753584044329,0.1927,3773.3,3773.2,2.25776]
[1753584044732,1.2117,3773.3,3773.2,2.25776]
[1753584045033,1.6863,3773.3,3773.2,2.25776]
[1753584051238,1.2117,3773.3,3773.2,2.25776]
[1753584051438,1.4878,3773.3,3773.2,2.25776]
[1753584051837,1.6863,3773.3,3773.2,2.25776]
[1753584053540,4.8941,3773.3,3773.2,2.25776]
[1753584056740,4.4195,3773.3,3773.2,2.25776]
[1753584056937,4.1213,3773.3,3773.2,2.25776]
[1753584057839,4.4229,3773.3,3773.2,2.25776]
[1753584058034,4.6998,3773.3,3773.2,2.25776]
[1753584058339,4.9054,3773.3,3773.2,2.25776]
[1753584061442,4.6285,3773.3,3773.2,2.25776]
[1753584061640,3.6886,3773.3,3773.2,2.25776]
[1753584062736,3.4005,3773.3,3773.2,2.25776]
[1753584064242,3.8365,3773.3,3773.2,2.25776]
[1753584064637,4.1381,3773.3,3773.2,2.25776]
[1753584065141,3.4005,3773.3,3773.2,2.25776]
[1753584065736,3.2078,3773.3,3773.2,2.25776]
[1753584067031,3.4151,3773.3,3773.2,2.25776]
[1753584067236,3.8511,3773.3,3773.2,2.25776]
[1753584067440,4.1527,3773.3,3773.2,2.25776]
[1753584069341,3.2078,3773.3,3773.2,2.25776]
[1753584070440,0.37595803,3773.5,3773.4,2.27964]
[1753584070944,0.16865803,3773.5,3773.4,2.27964]
[1753584071247,0.16865803,3773.5,3773.4,2.27520468]
[1753584072142,0.81195803,3773.5,3773.4,2.27520468]
[1753584072444,1.39045803,3773.5,3773.4,2.27520468]
[1753584072841,1.90095803,3773.5,3773.4,2.27520468]
[1753584073041,1.90095803,3773.5,3773.4,1.01580468]
[1753584073244,1.90095803,3773.5,3773.4,0.82680468]
[1753584073745,1.90095803,3773.5,3773.4,0.52540468]
[1753584075542,1.39045803,3773.5,3773.4,2.27520468]
[1753584076344,1.69535803,3773.5,3773.4,2.27520468]
[1753584076649,1.90095803,3773.5,3773.4,2.27520468]
[1753584077148,5.10875803,3773.5,3773.4,2.27520468]
[1753584077744,5.10875803,3773.5,3773.4,1.51430468]
[1753584077939,5.10875803,3773.5,3773.4,1.80890468]
[1753584078146,5.10875803,3773.5,3773.4,2.27520468]
[1753584078450,1.90095803,3773.5,3773.4,2.27520468]
[1753584081251,1.90095803,3773.5,3773.4,0.52984]
[1753584081451,5.10875803,3773.5,3773.4,0.52984]
[1753584081951,5.10875803,3773.5,3773.4,0.83124]
[1753584083153,5.63857803,3773.5,3773.4,0.83124]
[1753584084547,0.7376,3773.4,3773.0,0.7609]
[1753584084853,2.2622,3773.0,3772.9,0.9889]
[1753584085151,2.2622,3773.0,3772.9,0.7858]
[1753584085747,1.24772,3772.8,3772.7,1.68293]
[1753584085942,2.26222,3772.8,3772.7,1.98433]
[1753584086152,2.26222,3772.8,3772.7,2.27973]
[1753584086855,2.26222,3772.8,3772.7,1.31573]
[1753584087350,2.26222,3772.8,3772.7,0.7858]
[1753584087557,2.26222,3772.8,3772.7,1.31573]
[1753584087750,2.26222,3772.8,3772.7,0.7858]
[1753584088154,2.26222,3772.8,3772.7,0.3014]
[1753584088455,2.27285,3772.6,3772.5,2.28406]
[1753584088653,2.27285,3772.6,3772.5,1.7541]
[1753584089656,2.27285,3772.6,3772.5,2.28406]
[1753584090260,2.27285,3772.6,3772.5,1.7541]
[1753584090662,2.27285,3772.6,3772.5,2.28406]
[1753584090955,1.7429,3772.6,3772.5,2.28406]
[1753584091351,2.27285,3772.6,3772.5,2.28406]
[1753584091751,1.7429,3772.6,3772.5,2.28406]
[1753584095461,1.5533,3772.9,3772.8,0.6951]
[1753584095667,1.5533,3772.9,3772.8,2.27492]
[1753584096165,2.27291,3772.9,3772.8,2.27492]
[1753584098167,1.743,3772.9,3772.8,2.27492]
[1753584098366,2.27291,3772.9,3772.8,2.27492]
[1753584098562,1.743,3772.9,3772.8,2.27492]
[1753584100270,2.27291,3772.9,3772.8,2.27492]
[1753584102775,2.27291,3772.9,3772.8,1.745]